bitfinex/quotes_BTCUSD_20250519
["timestamp","ask_amount","ask_price","bid_price","bid_amount"]
[1747667997092,0.24332662,104450.0,104440.0,0.89864741]
[1747667997323,0.27612662,104450.0,104440.0,0.9082221]
[1747667997669,0.27612662,104450.0,104440.0,0.68800025]
[1747667997670,0.26655303,104450.0,104440.0,0.68800025]
[1747667997869,0.44123561,104450.0,104440.0,0.424]
[1747667998224,0.44123561,104450.0,104440.0,0.079]
[1747667998433,0.44123561,104450.0,104440.0,0.004]
[1747667999403,0.70523586,104450.0,104440.0,0.004]
[1747668000727,0.69923586,104450.0,104440.0,0.004]
[1747668000985,0.24066677,104430.0,104420.0,0.342]
[1747668002198,0.24081056,104430.0,104420.0,0.342]
[1747668002409,0.21081056,104430.0,104420.0,0.60900025]
[1747668002609,0.02886996,104430.0,104420.0,0.82926371]
[1747668002756,0.2203858,104430.0,104420.0,0.82926371]
[1747668002959,0.22038626,104430.0,104420.0,0.8292639]
[1747668003409,0.22038626,104430.0,104420.0,0.83884015]
[1747668003654,0.2309614,104430.0,104420.0,0.92384015]
[1747668003844,0.2309614,104430.0,104420.0,0.9334163]
[1747668004003,0.2309614,104430.0,104420.0,0.93341566]
[1747668004192,0.02986968,104430.0,104420.0,0.96611566]
[1747668004392,0.24053691,104430.0,104420.0,0.93341566]
[1747668004640,0.03944528,104430.0,104420.0,0.93341566]
[1747668005056,0.01071875,104430.0,104420.0,1.09452506]
[1747668005383,0.02029399,104430.0,104420.0,1.09452506]
[1747668005584,0.25327917,104450.0,104440.0,0.55064698]
[1747668005777,0.2106268,104450.0,104440.0,0.81464741]
[1747668005918,0.2106268,104450.0,104440.0,0.61357512]
[1747668006120,0.2106268,104450.0,104440.0,0.81464723]
[1747668006514,0.2106268,104450.0,104440.0,0.82422173]
[1747668007150,0.2246776,104460.0,104450.0,0.53147917]
[1747668007338,0.01914314,104470.0,104460.0,0.22017857]
[1747668007550,0.03876702,104470.0,104460.0,0.83375141]
[1747668007715,0.03876693,104470.0,104460.0,0.83375141]
[1747668007914,0.01962324,104470.0,104460.0,0.83375141]
[1747668008163,0.0004801,104470.0,104460.0,0.83375141]
[1747668008369,0.0004801,104470.0,104460.0,0.86354056]
[1747668008613,0.00957038,104480.0,104470.0,0.82415729]
[1747668008812,0.21254581,104490.0,104480.0,0.56970772]
[1747668009016,0.23182357,104490.0,104480.0,0.83370816]
[1747668009224,0.01170747,104490.0,104480.0,0.84327872]
[1747668009429,0.11308096,104510.0,104480.0,1.46602837]
[1747668009632,0.04527569,104510.0,104500.0,0.48409482]
[1747668009870,0.03570778,104510.0,104500.0,1.11784422]
[1747668010050,0.0548435,104510.0,104500.0,1.11784422]
[1747668010294,0.002,104510.0,104500.0,1.11784422]
[1747668010703,0.30168327,104530.0,104520.0,0.34]
[1747668010852,0.3018211,104530.0,104520.0,0.34]
[1747668012240,0.3366211,104530.0,104520.0,0.34]
[1747668013135,0.01570382,104530.0,104520.0,0.85647327]
[1747668013267,0.03483643,104530.0,104520.0,0.85647327]
[1747668013470,0.02626989,104530.0,104520.0,0.85647327]
[1747668013696,0.03583615,104530.0,104520.0,0.87049023]
[1747668013903,0.04540241,104530.0,104520.0,0.53049023]
[1747668014089,0.02526989,104530.0,104520.0,0.53049023]
[1747668014289,0.00613783,104530.0,104520.0,0.97179988]
[1747668014492,0.00613783,104530.0,104520.0,1.16911988]
[1747668014689,0.00213783,104530.0,104520.0,1.66094073]
[1747668015007,0.00413783,104530.0,104520.0,1.66084466]
[1747668015564,0.2219901,104550.0,104540.0,0.22001036]
[1747668015565,0.0211284,104550.0,104540.0,0.22001036]
[1747668015688,0.002,104550.0,104540.0,0.87665061]
[1747668015891,0.01156406,104550.0,104540.0,1.31396001]
[1747668016096,0.00556406,104550.0,104540.0,1.31396001]
[1747668016330,0.02869055,104560.0,104550.0,0.21042498]
[1747668016554,0.02869046,104560.0,104550.0,0.83355364]
[1747668017159,0.28988047,104570.0,104560.0,0.21040485]
[1747668017357,0.29002436,104570.0,104560.0,0.6706851]
[1747668017558,0.32232436,104570.0,104560.0,0.38755773]
[1747668017777,0.32232436,104570.0,104560.0,0.19628]
[1747668018432,0.32632436,104570.0,104560.0,0.39712152]
[1747668018627,0.32632436,104570.0,104560.0,1.02024853]
[1747668018628,0.10264163,104570.0,104560.0,1.02024853]
[1747668018856,0.00214389,104570.0,104560.0,1.02024853]
[1747668019059,0.01170622,104570.0,104560.0,1.02024853]
[1747668019263,0.02126882,104570.0,104560.0,1.21648853]
[1747668019623,0.01170613,104570.0,104560.0,1.21648853]
[1747668019821,0.03283106,104570.0,104560.0,1.21648853]
[1747668020071,0.00414389,104570.0,104560.0,1.32833878]
[1747668020276,0.02626855,104570.0,104560.0,1.32833878]
[1747668020450,0.23665347,104570.0,104560.0,0.92127802]
[1747668020655,0.23665347,104570.0,104560.0,0.74664504]
[1747668020656,0.21452881,104570.0,104560.0,0.74664504]
[1747668020859,0.01370622,104570.0,104560.0,0.83353186]
[1747668021038,0.00514389,104570.0,104560.0,1.32328126]
[1747668021544,0.00214389,104570.0,104560.0,1.33782211]
[1747668021956,0.00214389,104570.0,104560.0,1.33882211]
[1747668022131,0.00214389,104570.0,104560.0,1.07482186]
[1747668022335,0.00214389,104570.0,104560.0,1.33882211]
[1747668022779,0.00214389,104570.0,104560.0,1.40452211]
[1747668024036,0.00214389,104570.0,104560.0,1.81756211]
[1747668024239,0.29552253,104590.0,104580.0,0.55992621]
[1747668024420,0.29600208,104590.0,104580.0,1.02012665]
[1747668024752,0.29600208,104590.0,104580.0,0.7561264]
[1747668024982,0.29600208,104590.0,104580.0,1.02012665]
[1747668025206,0.29600208,104590.0,104580.0,1.02968815]
[1747668025411,0.22338501,104590.0,104580.0,1.02968815]
[1747668025686,0.02260046,104590.0,104580.0,1.03924956]
[1747668025840,0.00347955,104590.0,104580.0,1.40055921]
[1747668026021,0.0321616,104590.0,104580.0,1.15077528]
[1747668026234,0.0321616,104590.0,104580.0,1.34681528]
[1747668026443,0.0341616,104590.0,104580.0,1.34681528]
[1747668027057,0.24762443,104590.0,104580.0,0.35421632]
[1747668027278,0.27642443,104590.0,104580.0,1.02474155]
[1747668027484,0.27642443,104590.0,104580.0,1.03430333]
[1747668027698,0.24562443,104590.0,104580.0,1.04386502]
[1747668027900,0.24262443,104590.0,104580.0,1.04386502]
[1747668028233,0.21182443,104590.0,104580.0,1.04386502]
[1747668028750,0.24362443,104590.0,104580.0,1.04386502]
[1747668029099,0.21182443,104590.0,104580.0,1.04386502]
[1747668029541,0.21182443,104590.0,104580.0,1.03430333]
[1747668029922,0.20226347,104590.0,104580.0,1.02474155]
[1747668030296,0.20226347,104590.0,104580.0,1.04386502]
[1747668031217,0.20226347,104590.0,104580.0,1.03430333]
[1747668031427,0.20226347,104590.0,104580.0,1.02474155]
[1747668031859,0.19626347,104590.0,104580.0,1.03430333]
[1747668032698,0.19626347,104590.0,104580.0,0.69430333]
[1747668034166,0.19626347,104590.0,104580.0,0.70386502]
[1747668034407,0.19626347,104590.0,104580.0,0.69430333]
[1747668034625,0.25956347,104590.0,104580.0,0.01421632]
[1747668034832,0.25552287,104590.0,104580.0,0.01727435]
[1747668035045,0.25552287,104590.0,104580.0,0.00305803]
[1747668036103,0.2103647,104580.0,104570.0,0.82394692]
[1747668036658,0.02868515,104580.0,104570.0,0.83350925]
[1747668036856,0.00956141,104580.0,104570.0,0.83350925]
[1747668037166,0.21992612,104580.0,104570.0,0.83350925]
[1747668037400,0.22948817,104580.0,104570.0,0.82694692]
[1747668038122,0.02868442,104580.0,104570.0,0.83650925]
[1747668038273,0.03824629,104580.0,104570.0,0.84207443]
[1747668038494,0.02868442,104580.0,104570.0,0.84207443]
[1747668038729,0.03824629,104580.0,104570.0,0.84207443]
[1747668039098,0.03824629,104580.0,104570.0,0.57807418]
[1747668039304,0.03824629,104580.0,104570.0,0.84207443]
[1747668039506,0.04780825,104580.0,104570.0,0.84207443]
[1747668039803,0.03824684,104580.0,104570.0,0.84207443]
[1747668040001,0.01912273,104580.0,104570.0,0.84207443]
[1747668040306,0.0286846,104580.0,104570.0,0.84207443]
[1747668040646,0.01912273,104580.0,104570.0,0.84207443]
[1747668041121,0.02868442,104580.0,104570.0,0.84207443]
[1747668041329,0.01912273,104580.0,104570.0,0.84207443]
[1747668041538,0.21999437,104590.0,104580.0,0.55036498]
[1747668041740,0.21999437,104590.0,104580.0,0.81436523]
[1747668042141,0.24999437,104590.0,104580.0,0.81436523]
[1747668042583,0.24990583,104590.0,104580.0,0.82392683]
[1747668042808,0.24990583,104590.0,104580.0,0.83348833]
[1747668043013,0.21990583,104590.0,104580.0,0.83348833]
[1747668043523,0.21990583,104590.0,104580.0,0.82392683]
[1747668043942,0.22090583,104590.0,104580.0,0.82392683]
[1747668044159,0.22090583,104590.0,104580.0,0.83191018]
[1747668044385,0.21134506,104590.0,104580.0,0.6215452]
[1747668044620,0.25552287,104590.0,104580.0,0.81278635]
[1747668044823,0.25552287,104590.0,104580.0,0.83191018]
[1747668045631,0.25552287,104590.0,104580.0,0.83522524]
[1747668046059,0.26508383,104590.0,104580.0,0.84478693]
[1747668046278,0.27464451,104590.0,104580.0,0.84478693]
[1747668046507,0.27464451,104590.0,104580.0,0.83522524]
[1747668047236,0.27464451,104590.0,104580.0,0.84478702]
[1747668047455,0.26864451,104590.0,104580.0,0.85434871]
[1747668047914,0.21490556,104590.0,104580.0,0.85434871]
[1747668048297,0.24790556,104590.0,104580.0,0.85434871]
[1747668048619,0.24790556,104590.0,104580.0,0.84478702]
[1747668049323,0.26118392,104590.0,104580.0,0.62486026]
[1747668049534,0.26118392,104590.0,104580.0,0.57122517]
[1747668049754,0.26118392,104590.0,104580.0,0.83522542]
[1747668050416,0.26118392,104590.0,104580.0,0.84478729]
[1747668051154,0.0105605,104590.0,104580.0,0.86391039]
[1747668051380,0.22090501,104590.0,104580.0,0.85434898]
[1747668051635,0.22090501,104590.0,104580.0,0.86391058]
[1747668051890,0.001,104590.0,104580.0,1.25159986]
[1747668052163,0.02968177,104590.0,104580.0,0.98759961]
[1747668052413,0.02968177,104590.0,104580.0,0.98455961]
[1747668052770,0.02848045,104590.0,104580.0,0.98124455]
[1747668053152,0.23882542,104590.0,104580.0,0.97168314]
[1747668053306,0.27092542,104590.0,104580.0,0.98124409]
[1747668053505,0.27092542,104590.0,104580.0,0.97168268]
[1747668053702,0.07970255,104590.0,104580.0,0.98124409]
[1747668053911,0.07014141,104590.0,104580.0,0.98124409]
[1747668054117,0.07970246,104590.0,104580.0,0.98124409]
[1747668055098,0.07034292,104590.0,104580.0,0.98124409]
[1747668055448,0.03824292,104590.0,104580.0,0.98124409]
[1747668056001,0.04780378,104590.0,104580.0,0.98124409]
[1747668057411,0.03824273,104590.0,104580.0,0.98124409]
[1747668057860,0.04780378,104590.0,104580.0,0.98124409]
[1747668059425,0.08010378,104590.0,104580.0,0.98124409]
[1747668060157,0.27304488,104590.0,104580.0,0.38088522]
[1747668060388,0.27304488,104590.0,104580.0,0.83612662]
[1747668060614,0.27304488,104590.0,104580.0,0.87437374]
[1747668060889,0.25220565,104590.0,104580.0,0.88393515]
[1747668061102,0.25220565,104590.0,104580.0,0.57212637]
[1747668061103,0.28300565,104590.0,104580.0,0.57212637]
[1747668061311,0.28300565,104590.0,104580.0,0.83612662]
[1747668061742,0.28300565,104590.0,104580.0,0.84568867]
[1747668062763,0.28300565,104590.0,104580.0,0.65780791]
[1747668062966,0.26388401,104590.0,104580.0,0.84904906]
[1747668063179,0.26388401,104590.0,104580.0,0.82266879]
[1747668063825,0.26388401,104590.0,104580.0,0.83223075]
[1747668066251,0.26388401,104590.0,104580.0,0.83138956]
[1747668067032,0.25432287,104590.0,104580.0,0.35702415]
[1747668067770,0.25432287,104590.0,104580.0,0.6210244]
[1747668068709,0.27344487,104590.0,104580.0,0.83138938]
[1747668070504,0.26744487,104590.0,104580.0,0.83138938]
[1747668071061,0.04036032,104590.0,104580.0,0.85051248]
[1747668071261,0.33996435,104600.0,104590.0,0.21034469]
[1747668071466,0.34952439,104600.0,104590.0,0.46478417]
[1747668071623,0.33996462,104600.0,104590.0,0.19122287]
[1747668071849,0.33996462,104600.0,104590.0,0.21990602]
[1747668072027,0.33996462,104600.0,104590.0,0.22946679]
[1747668072527,0.34196462,104600.0,104590.0,0.23252496]
[1747668072717,0.34196462,104600.0,104590.0,0.21340323]
[1747668072944,0.34496462,104600.0,104590.0,0.21340323]
[1747668073132,0.34496462,104600.0,104590.0,0.22296419]
[1747668073329,0.35452439,104600.0,104590.0,0.49652521]
[1747668073735,0.38572439,104600.0,104590.0,0.49652521]
[1747668074155,0.38572439,104600.0,104590.0,0.48696444]
[1747668074560,0.19451926,104600.0,104590.0,0.50608571]
[1747668074766,0.1406793,104600.0,104590.0,0.84608571]
[1747668075350,0.3414441,104600.0,104590.0,0.83652521]
[1747668075562,0.3414441,104600.0,104590.0,0.84608589]
[1747668076152,0.3718441,104600.0,104590.0,0.84608589]
[1747668076470,0.3718441,104600.0,104590.0,0.84608534]
[1747668077541,0.3414441,104600.0,104590.0,0.84608534]
[1747668077755,0.112,104600.0,104590.0,0.94339419]
[1747668077993,0.112,104600.0,104590.0,2.11187806]
[1747668078234,0.112,104600.0,104590.0,1.50243035]
[1747668078435,0.106,104600.0,104590.0,1.50243035]
[1747668078605,0.103,104600.0,104590.0,1.50243035]
[1747668078759,0.101,104600.0,104590.0,1.50579074]
[1747668078963,0.102,104600.0,104590.0,1.50579074]
[1747668079238,0.102,104600.0,104590.0,0.59268297]
[1747668079440,0.102,104600.0,104590.0,2.23210387]
[1747668079652,0.102,104600.0,104590.0,2.24664472]
[1747668080151,0.03,104620.0,104610.0,0.34]
[1747668080357,0.06264,104640.0,104630.0,0.54070706]
[1747668080579,0.00970016,104640.0,104630.0,1.01926127]
[1747668080814,0.21994461,104640.0,104630.0,1.00970443]
[1747668081208,0.21994461,104640.0,104630.0,1.01926146]
[1747668081430,0.21994461,104640.0,104630.0,1.00014731]
[1747668081580,0.20083192,104640.0,104630.0,0.79944025]
[1747668081802,0.23323192,104640.0,104630.0,0.79944025]
[1747668081984,0.23323192,104640.0,104630.0,0.80776566]
[1747668082182,0.20483192,104640.0,104630.0,0.92418939]
[1747668082439,0.24918822,104640.0,104630.0,0.34305817]
[1747668082593,0.24918822,104640.0,104630.0,0.60705842]
[1747668083047,0.24918822,104640.0,104630.0,0.34305817]
[1747668083487,0.27918822,104640.0,104630.0,0.60705842]
[1747668083729,0.21838822,104640.0,104630.0,0.83604666]
[1747668083944,0.21838822,104640.0,104630.0,0.84560405]
[1747668084175,0.21838822,104640.0,104630.0,0.85516135]
[1747668084422,0.21838822,104640.0,104630.0,0.56248893]
[1747668084635,0.21838822,104640.0,104630.0,0.37133917]
[1747668084840,0.24838822,104640.0,104630.0,0.37133917]
[1747668085045,0.28098822,104640.0,104630.0,0.37133917]
[1747668086005,0.27128779,104640.0,104630.0,0.368281]
[1747668086209,0.27128779,104640.0,104630.0,0.55943076]
[1747668086699,0.23868779,104640.0,104630.0,0.56898806]
[1747668087175,0.20868779,104640.0,104630.0,0.56898824]
[1747668087371,0.26203149,104640.0,104630.0,0.368281]
[1747668089009,0.26203149,104640.0,104630.0,0.028281]
[1747668089426,0.26300706,104630.0,104620.0,0.34]
[1747668089848,0.26300706,104630.0,104620.0,0.53116803]
[1747668089994,0.21026427,104630.0,104620.0,0.8142848]
[1747668090200,0.21026427,104630.0,104620.0,0.82384283]
[1747668090755,0.01355712,104630.0,104620.0,0.93070916]
[1747668091032,0.02311387,104630.0,104620.0,0.96320916]
[1747668091371,0.02311387,104630.0,104620.0,0.9662659]
[1747668091578,0.004,104630.0,104620.0,1.1946059]
[1747668091958,0.01355666,104630.0,104620.0,1.1946059]
[1747668092181,0.02117095,104650.0,104640.0,0.21980038]
[1747668092395,0.22183938,104650.0,104640.0,0.81438856]
[1747668092630,0.30420066,104670.0,104640.0,3.5597751]
[1747668092631,0.20537625,104670.0,104640.0,3.5597751]
[1747668092852,0.04295904,104670.0,104660.0,0.82375817]
[1747668093067,0.04295904,104670.0,104660.0,0.81420416]
[1747668093068,0.23403575,104670.0,104660.0,0.81420416]
[1747668093272,0.23403575,104670.0,104660.0,0.34]
[1747668093273,0.22448256,104670.0,104660.0,0.34]
[1747668093494,0.20537581,104670.0,104660.0,0.61830696]
[1747668093727,0.26967581,104670.0,104660.0,0.01430671]
[1747668093939,0.26367581,104670.0,104660.0,0.01430671]
[1747668094147,0.20064971,104660.0,104650.0,0.74558377]
[1747668094351,0.20064971,104660.0,104650.0,1.00002895]
[1747668094557,0.20064971,104660.0,104650.0,0.79936025]
[1747668094759,0.23194971,104660.0,104650.0,0.80891591]
[1747668095008,0.22239497,104660.0,104650.0,0.34]
[1747668095253,0.25339497,104660.0,104650.0,0.34]
[1747668096511,0.25339497,104660.0,104650.0,0.002]
[1747668096718,0.61470462,104660.0,104650.0,0.002]
[1747668097572,0.61470462,104660.0,104650.0,0.001]
[1747668097748,0.2006687,104650.0,104640.0,0.00214386]
[1747668097918,0.2638687,104650.0,104640.0,0.00214386]
[1747668099025,0.2638687,104650.0,104640.0,0.26614411]
[1747668099966,0.2330687,104650.0,104640.0,0.26614411]
[1747668100188,0.2660687,104650.0,104640.0,0.26614411]
[1747668100365,0.2340687,104650.0,104640.0,0.26614411]
[1747668100758,0.2350687,104650.0,104640.0,0.28056106]
[1747668102033,0.2663687,104650.0,104640.0,0.28056106]
[1747668102363,0.2663687,104650.0,104640.0,0.01656081]
[1747668103687,0.2350687,104650.0,104640.0,0.28056106]
[1747668103875,0.21222408,104650.0,104640.0,0.82124912]
[1747668104078,0.21222408,104650.0,104640.0,0.8308056]
[1747668104200,0.21222408,104650.0,104640.0,0.84036199]
[1747668105231,0.01155511,104650.0,104640.0,1.2537835]
[1747668105542,0.03066515,104650.0,104640.0,1.2537835]
[1747668105742,0.002,104650.0,104640.0,2.7906665]
[1747668105921,0.01155484,104650.0,104640.0,2.6272385]
[1747668106122,0.002,104650.0,104640.0,2.75533745]
[1747668106627,0.002,104650.0,104640.0,2.71821545]
[1747668107046,0.002,104650.0,104640.0,2.13291945]
[1747668107231,0.01155493,104650.0,104640.0,2.13291945]
[1747668107444,0.01155484,104650.0,104640.0,2.13542496]
[1747668107849,0.02110977,104650.0,104640.0,2.13542496]
[1747668108052,0.002,104650.0,104640.0,2.13542496]
[1747668108667,0.002,104650.0,104640.0,2.14996581]
[1747668109316,0.0055541,104660.0,104650.0,0.59247911]
[1747668109529,0.22929258,104670.0,104660.0,0.21020418]
[1747668109723,0.22929258,104670.0,104660.0,0.48375872]
[1747668109950,0.2292914,104670.0,104660.0,0.48375872]
[1747668110350,0.2292914,104670.0,104660.0,0.48681467]
[1747668110548,0.01910675,104670.0,104660.0,0.82681413]
[1747668110798,0.04121368,104670.0,104660.0,0.83636823]
[1747668111199,0.04421368,104670.0,104660.0,0.83636823]
[1747668111423,0.23529039,104670.0,104660.0,0.81725993]
[1747668111758,0.04421368,104670.0,104660.0,0.81725993]
[1747668111963,0.05376751,104670.0,104660.0,0.81725993]
[1747668112135,0.03466003,104670.0,104660.0,0.79946561]
[1747668112289,0.04421377,104670.0,104660.0,0.80902008]
[1747668112995,0.04121377,104670.0,104660.0,0.80902018]
[1747668113328,0.03921377,104670.0,104660.0,0.81857428]
[1747668113707,0.02010647,104670.0,104660.0,0.85067428]
[1747668113912,0.03921368,104670.0,104660.0,0.81857428]
[1747668114545,0.03921368,104670.0,104660.0,1.01361428]
[1747668115084,0.23029149,104670.0,104660.0,0.99450652]
[1747668115259,0.23029149,104670.0,104660.0,1.00406081]
[1747668115435,0.22073793,104670.0,104660.0,0.99450652]
[1747668115641,0.22073793,104670.0,104660.0,1.01361519]
[1747668115842,0.25223793,104670.0,104660.0,0.80902099]
[1747668116046,0.25223793,104670.0,104660.0,1.02316966]
[1747668116402,0.28543793,104670.0,104660.0,1.02316966]
[1747668116992,0.24623793,104670.0,104660.0,1.02316966]
[1747668118423,0.24623793,104670.0,104660.0,1.01361537]
[1747668118634,0.24168428,104670.0,104660.0,1.01361537]
[1747668118849,0.24168428,104670.0,104660.0,1.00406099]
[1747668119225,0.24168428,104670.0,104660.0,0.99450652]
[1747668119386,0.27238428,104670.0,104660.0,1.00406099]
[1747668120401,0.26283054,104670.0,104660.0,0.99450652]
[1747668120598,0.25327671,104670.0,104660.0,0.53809595]
[1747668120968,0.25327671,104670.0,104660.0,0.00305595]
[1747668121411,0.20064971,104660.0,104650.0,1.08926359]
[1747668121620,0.20064971,104660.0,104650.0,1.10837426]
[1747668121821,0.21020418,104660.0,104650.0,1.11792946]
[1747668122027,0.21020382,104660.0,104650.0,1.10837353]
[1747668122427,0.21020382,104660.0,104650.0,1.09981842]
[1747668122645,0.21020382,104660.0,104650.0,1.10081842]
[1747668123032,0.21020382,104660.0,104650.0,0.90577842]
[1747668123290,0.21020382,104660.0,104650.0,0.62260133]
[1747668123291,0.26614962,104660.0,104650.0,0.62260133]
[1747668123720,0.26614962,104660.0,104650.0,0.42756133]
[1747668124157,0.36345902,104660.0,104650.0,0.00756133]
[1747668124588,0.82233927,104660.0,104650.0,0.00756133]
[1747668124798,0.62145927,104660.0,104650.0,0.00756133]
[1747668125011,0.2006687,104650.0,104640.0,0.00550425]
[1747668125190,1.1948592,104650.0,104640.0,0.00550425]
[1747668126744,1.1888592,104650.0,104640.0,0.00550425]
[1747668126949,1.1928592,104650.0,104640.0,0.00550425]
[1747668127148,1.2901686,104650.0,104640.0,0.00214386]
[1747668127569,1.1928592,104650.0,104640.0,0.00214386]
[1747668127799,1.24616415,104650.0,104640.0,0.00214386]
[1747668128003,0.9821639,104650.0,104640.0,0.00214386]
[1747668128208,1.24616415,104650.0,104640.0,0.00214386]
[1747668129214,1.24616415,104650.0,104620.0,0.002]
[1747668129215,0.21026409,104630.0,104620.0,0.002]
[1747668129419,1.43346987,104630.0,104620.0,0.002]
[1747668130403,1.16046962,104630.0,104620.0,0.002]
[1747668130599,1.17046962,104630.0,104620.0,0.002]
[1747668131227,1.43446987,104630.0,104620.0,0.002]
[1747668131640,1.04650987,104630.0,104620.0,0.002]
[1747668131842,1.13287434,104630.0,104620.0,0.002]
[1747668132042,1.39687459,104630.0,104620.0,0.002]
[1747668132809,1.00691459,104630.0,104620.0,0.002]
[1747668133009,1.39687459,104630.0,104620.0,0.002]
[1747668133731,1.00691459,104630.0,104620.0,0.002]
[1747668133940,1.10422399,104630.0,104620.0,0.002]
[1747668134170,1.49422399,104630.0,104620.0,0.002]
[1747668134352,0.20078383,104590.0,104580.0,0.54394086]
[1747668134560,0.20078383,104590.0,104580.0,0.57832386]
[1747668134771,0.21034469,104590.0,104580.0,0.59744769]
[1747668134983,0.002,104610.0,104600.0,0.20076471]
[1747668135210,0.22186315,104610.0,104600.0,0.615098]
[1747668135432,0.22186315,104610.0,104600.0,0.61509809]
[1747668135643,0.22200679,104610.0,104600.0,0.61509809]
[1747668135869,0.22200679,104610.0,104580.0,1.02609329]
[1747668135870,0.01912091,104590.0,104580.0,1.02609329]
[1747668136086,0.23902655,104590.0,104580.0,1.0191298]
[1747668136301,0.21990564,104590.0,104580.0,0.91284113]
[1747668136456,0.21034487,104590.0,104580.0,1.06756291]
[1747668136665,0.21990537,104590.0,104580.0,1.0866861]
[1747668136872,0.22946651,104590.0,104580.0,0.43029474]
[1747668137238,0.21034506,104590.0,104580.0,0.6406599]
[1747668137422,0.20078401,104590.0,104580.0,0.6406599]
[1747668137627,0.20078401,104590.0,104580.0,0.65022177]
[1747668137978,0.21034506,104590.0,104580.0,0.65422177]
[1747668138185,0.21034506,104590.0,104580.0,0.65822177]
[1747668139001,0.21034506,104590.0,104580.0,0.9317838]
[1747668140329,0.00956105,104590.0,104580.0,0.94134485]
[1747668140499,0.21990583,104590.0,104580.0,0.9558513]
[1747668140712,0.21990583,104590.0,104580.0,0.94628989]
[1747668140917,0.21990583,104590.0,104580.0,0.68228964]
[1747668141120,0.36149341,104590.0,104580.0,0.03259449]
[1747668141961,0.36149341,104590.0,104580.0,0.02859449]
[1747668142163,0.36149341,104590.0,104580.0,0.02459449]
[1747668143210,0.21038473,104570.0,104560.0,0.002]
[1747668144126,0.21038473,104570.0,104560.0,0.26600025]
[1747668144335,0.21038473,104570.0,104560.0,0.002]
[1747668144551,0.21038473,104570.0,104560.0,0.2704798]
[1747668144765,0.21038473,104570.0,104560.0,0.2744798]
[1747668145185,0.20082195,104570.0,104560.0,0.2744798]
[1747668145392,0.21038473,104570.0,104560.0,0.2744798]
[1747668146956,0.36969413,104570.0,104560.0,0.01047955]
[1747668147798,0.70969413,104570.0,104560.0,0.01047955]
[1747668148008,0.99823523,104570.0,104560.0,0.00247955]
[1747668148217,1.12399498,104570.0,104560.0,0.00247955]
[1747668148433,1.09945413,104570.0,104560.0,0.00647955]
[1747668148678,0.36969413,104570.0,104560.0,0.2684798]
[1747668148899,0.21038473,104570.0,104560.0,0.2664798]
[1747668149129,0.21538473,104570.0,104560.0,0.2664798]
[1747668149355,0.21338473,104570.0,104560.0,0.2664798]
[1747668149575,0.21638473,104570.0,104560.0,0.2664798]
[1747668150413,0.21338473,104570.0,104560.0,0.2664798]
[1747668151047,0.21038473,104570.0,104560.0,0.2664798]
[1747668151463,0.21238473,104570.0,104560.0,0.2664798]
[1747668151682,0.21438473,104570.0,104560.0,0.2664798]
[1747668152809,0.20838473,104570.0,104560.0,0.2664798]
[1747668152969,0.21438473,104570.0,104560.0,0.2664798]
[1747668153583,0.21438473,104570.0,104560.0,0.49942123]
[1747668153966,0.21438473,104570.0,104560.0,0.48985753]
[1747668154171,0.19525944,104570.0,104560.0,0.48985753]
[1747668154386,0.19525944,104570.0,104560.0,0.50248013]
[1747668154826,0.19525944,104570.0,104560.0,0.91108013]
[1747668155321,0.19525944,104570.0,104560.0,0.92064392]
[1747668155535,0.20482222,104570.0,104560.0,0.93020753]
[1747668155756,0.21438473,104570.0,104560.0,0.00553827]
[1747668155955,0.21438473,104570.0,104560.0,0.46081625]
[1747668156198,0.21438473,104570.0,104560.0,0.26953852]
[1747668156822,0.21438473,104570.0,104560.0,0.00553827]
[1747668157538,0.21238473,104570.0,104560.0,0.00553827]
[1747668157742,0.21038473,104570.0,104560.0,0.00553827]
[1747668158451,0.56489413,104570.0,104560.0,0.00553827]
[1747668159085,0.56489413,104570.0,104560.0,0.00247955]
[1747668160654,0.36053135,104570.0,104560.0,0.00247955]
[1747668160850,0.55533135,104570.0,104560.0,0.00247955]
[1747668161069,0.36253135,104570.0,104560.0,0.00247955]
[1747668161605,0.36453135,104570.0,104560.0,0.00247955]
[1747668164146,0.52733135,104570.0,104560.0,0.2664798]
[1747668164263,0.55733135,104570.0,104560.0,0.00247955]
[1747668168222,0.54776884,104570.0,104560.0,0.00247955]
[1747668168430,0.51772884,104570.0,104560.0,0.00247955]
[1747668168887,0.54892884,104570.0,104560.0,0.00247955]
[1747668175034,0.35416884,104570.0,104560.0,0.00247955]
[1747668175238,0.32296884,104570.0,104560.0,0.00247955]
[1747668175445,0.29256884,104570.0,104560.0,0.2664798]
[1747668176142,0.28656884,104570.0,104560.0,0.2664798]
[1747668176351,0.28656884,104570.0,104560.0,0.00247955]
[1747668176691,0.31976884,104570.0,104560.0,0.00247955]
[1747668178203,0.28656884,104570.0,104560.0,0.00247955]
[1747668178809,0.28656884,104570.0,104560.0,0.2664798]
[1747668179085,0.28656884,104570.0,104560.0,0.2995798]
[1747668180288,0.18925944,104570.0,104560.0,0.53142132]
[1747668180494,0.19882222,104570.0,104560.0,0.53142132]
[1747668180909,0.19882222,104570.0,104560.0,0.52185753]
[1747668181120,0.004,104570.0,104560.0,0.55054844]
[1747668181327,0.004,104570.0,104560.0,0.90011168]
[1747668181538,0.004,104570.0,104560.0,1.19210108]
[1747668181902,0.002,104570.0,104560.0,1.1951595]
[1747668182104,0.002,104570.0,104560.0,1.45915975]
[1747668182320,0.01912073,104590.0,104580.0,0.28412603]
[1747668182521,0.02868141,104590.0,104580.0,1.41548653]
[1747668182738,0.03824237,104590.0,104580.0,1.41548653]
[1747668183479,0.02868141,104590.0,104580.0,1.22748603]
[1747668183690,0.22946578,104590.0,104580.0,1.48192505]
[1747668184095,0.22946578,104590.0,104580.0,1.49454497]
[1747668184301,0.23902692,104590.0,104580.0,1.49454497]
[1747668184497,0.22946651,104590.0,104580.0,1.49454516]
[1747668184752,0.22946651,104590.0,104580.0,1.48498347]
[1747668184956,0.21034506,104590.0,104580.0,1.24221867]
[1747668185156,0.21034506,104590.0,104580.0,0.41165842]
[1747668185157,0.30765446,104590.0,104580.0,0.41165842]
[1747668185357,0.37145446,104590.0,104580.0,0.41165842]
[1747668185862,0.33865446,104590.0,104580.0,0.41165842]
[1747668186067,0.30765446,104590.0,104580.0,0.67565867]
[1747668186286,0.21034506,104590.0,104580.0,1.15994165]
[1747668186714,0.20078401,104590.0,104580.0,1.19004165]
[1747668186921,0.19122287,104590.0,104580.0,0.9988005]
[1747668187149,0.19122287,104590.0,104580.0,0.73480025]
[1747668187554,0.19122287,104590.0,104580.0,0.70470025]
[1747668188319,0.19122287,104590.0,104580.0,0.8959414]
[1747668188496,0.19122287,104590.0,104580.0,1.16950352]
[1747668188700,0.19122287,104590.0,104580.0,0.9265414]
[1747668188882,0.19122287,104590.0,104580.0,0.93610345]
[1747668189103,0.19122287,104590.0,104580.0,0.90550345]
[1747668189641,0.19122287,104590.0,104580.0,0.70470025]
[1747668190261,0.21994725,104570.0,104560.0,0.84164116]